[Event "2. Itzehoer Schach Open"]
[Site "Itzehoe, Germany"]
[Date "2023.05.01"]
[Round "5.2"]
[White "Kuegel, Tobias"]
[Black "Trapp, Hannes"]
[Result "1-0"]
[TimeControl "90 min / 40 Züge + 30 min + 30 Sek pro Zug"]
[WhiteElo "2332"]
[BlackElo "1677"]

1. e4 {[%clk 01:30:59]} d6 {[%clk 01:28:02]} {[%emt 00:02:59]} 2. d4 {[%clk
01:31:19]} {[%emt 00:00:09]} g6 {[%clk 01:28:16]} {[%emt 00:00:16]} 3. Nc3
{[%clk 01:31:27]} {[%emt 00:00:23]} Bg7 {[%clk 01:28:34]} {[%emt 00:00:12]} 4.
f4 {[%clk 01:31:19]} {[%emt 00:00:37]} e6 {[%clk 01:24:56]} {[%emt 00:04:08]} 5.
Nf3 {[%clk 01:31:02]} {[%emt 00:00:47]} f5 {[%clk 01:20:20]} {[%emt 00:05:06]}
6. exf5 {[%clk 01:13:50]} {[%emt 00:17:42]} exf5 {[%clk 01:20:38]} {[%emt
00:00:12]} 7. Bc4 {[%clk 01:09:31]} {[%emt 00:04:49]} Nf6 {[%clk 01:18:31]}
{[%emt 00:02:37]} 8. O-O {[%clk 01:08:24]} {[%emt 00:01:37]} d5 {[%clk
01:18:10]} {[%emt 00:00:51]} 9. Qe2+ {[%clk 01:05:03]} {[%emt 00:03:51]} Kf8
{[%clk 01:18:22]} {[%emt 00:00:18]} 10. b3 {[%clk 01:04:47]} {[%emt 00:00:47]}
c6 {[%clk 01:15:16]} {[%emt 00:03:36]} 11. Ba3+ {[%clk 00:50:15]} {[%emt
00:15:02]} Kg8 {[%clk 01:15:32]} {[%emt 00:00:13]} 12. Be7 {[%clk 00:47:19]}
{[%emt 00:03:26]} Qd7 {[%clk 01:12:03]} {[%emt 00:04:00]} 13. Bxf6 {[%clk
00:45:45]} {[%emt 00:02:04]} Bxf6 {[%clk 01:11:17]} {[%emt 00:01:16]} 14. Bd3
{[%clk 00:46:13]} {[%emt 00:00:02]} Qd6 {[%clk 01:08:17]} {[%emt 00:03:30]} 15.
Qe3 {[%clk 00:42:36]} {[%emt 00:04:07]} Kg7 {[%clk 01:07:56]} {[%emt 00:00:51]}
16. Nb1 {[%clk 00:40:15]} {[%emt 00:02:51]} Be6 {[%clk 01:06:23]} {[%emt
00:02:03]} 17. Nbd2 {[%clk 00:39:39]} {[%emt 00:01:06]} Nd7 {[%clk 01:06:26]}
{[%emt 00:00:28]} 18. Ne5 {[%clk 00:39:08]} {[%emt 00:01:01]} Rae8 {[%clk
01:03:12]} {[%emt 00:03:43]} 19. Ndf3 {[%clk 00:38:10]} {[%emt 00:01:28]} Bd8
{[%clk 01:02:11]} {[%emt 00:01:32]} 20. Nxd7 {[%clk 00:36:48]} {[%emt
00:01:52]} Bxd7 {[%clk 01:02:26]} {[%emt 00:00:14]} 21. Qd2 {[%clk 00:36:23]}
{[%emt 00:00:54]} Bb6 {[%clk 01:01:51]} {[%emt 00:01:06]} 22. b4 {[%clk
00:35:15]} {[%emt 00:01:38]} Qf6 {[%clk 00:50:06]} {[%emt 00:12:15]} 23. c3
{[%clk 00:35:00]} {[%emt 00:00:45]} a5 {[%clk 00:48:57]} {[%emt 00:01:40]} 24.
a3 {[%clk 00:34:46]} {[%emt 00:00:44]} h6 {[%clk 00:46:12]} {[%emt 00:03:14]}
25. Kh1 {[%clk 00:32:06]} {[%emt 00:03:10]} a4 {[%clk 00:38:38]} {[%emt
00:08:05]} 26. Ne5 {[%clk 00:27:23]} {[%emt 00:05:12]} Be6 {[%clk 00:38:01]}
{[%emt 00:01:07]} 27. Bc2 {[%clk 00:27:10]} {[%emt 00:00:43]} Ra8 {[%clk
00:38:15]} {[%emt 00:00:16]} 28. Rf3 {[%clk 00:21:37]} {[%emt 00:06:03]} Bc7
{[%clk 00:38:32]} {[%emt 00:00:14]} 29. Qd1 {[%clk 00:18:48]} {[%emt 00:03:18]}
g5 {[%clk 00:37:38]} {[%emt 00:01:24]} 30. Rg3 {[%clk 00:16:47]} {[%emt
00:02:31]} b5 {[%clk 00:36:58]} {[%emt 00:01:10]} 31. Qh5 {[%clk 00:15:53]}
{[%emt 00:01:23]} Bxe5 {[%clk 00:34:24]} {[%emt 00:03:05]} 32. dxe5 {[%clk
00:14:26]} {[%emt 00:01:57]} Qg6 {[%clk 00:34:37]} {[%emt 00:00:16]} 33. Qxg6+
{[%clk 00:13:11]} {[%emt 00:01:45]} Kxg6 {[%clk 00:34:59]} {[%emt 00:00:08]} 34.
Rf1 {[%clk 00:10:42]} {[%emt 00:02:58]} Raf8 {[%clk 00:30:34]} {[%emt
00:04:56]} 35. h4 {[%clk 00:09:58]} {[%emt 00:01:14]} Kf7 {[%clk 00:23:47]}
{[%emt 00:07:16]} 36. fxg5 {[%clk 00:07:28]} {[%emt 00:03:01]} hxg5 {[%clk
00:24:08]} {[%emt 00:00:09]} 37. Rxg5 {[%clk 00:06:36]} {[%emt 00:01:21]} Rxh4+
{[%clk 00:24:31]} {[%emt 00:00:07]} 38. Kg1 {[%clk 00:07:00]} {[%emt 00:00:06]}
Rc4 {[%clk 00:23:46]} {[%emt 00:01:16]} 39. Bxf5 {[%clk 00:03:18]} {[%emt
00:04:12]} Ke7 {[%clk 00:23:52]} {[%emt 00:00:24]} 40. Rg7+ {[%clk 00:01:52]}
{[%emt 00:01:56]} Rf7 {[%clk 00:23:56]} {[%emt 00:00:27]} 41. Rxf7+ {[%clk
00:02:13]} {[%emt 00:00:09]} Bxf7 {[%clk 00:24:19]} {[%emt 00:00:06]} 42. Rf3
{[%clk 00:00:49]} {[%emt 00:01:54]} Be6 {[%clk 00:24:40]} {[%emt 00:00:09]} 43.
g4 {[%clk 00:29:04]} {[%emt 00:02:15]} d4 {[%clk 00:54:58]} {[%emt 00:00:13]}
44. cxd4 {[%clk 00:26:35]} {[%emt 00:02:58]} Rxd4 {[%clk 00:55:21]} {[%emt
00:00:07]} 45. Rh3 {[%clk 00:18:36]} {[%emt 00:08:29]} Bd5 {[%clk 00:52:57]}
{[%emt 00:02:54]} 46. Rh7+ {[%clk 00:13:59]} {[%emt 00:05:07]} Kf8 {[%clk
00:53:00]} {[%emt 00:00:27]} 47. e6 {[%clk 00:13:17]} {[%emt 00:01:13]} Be4
{[%clk 00:53:01]} {[%emt 00:00:29]} 48. Kf2 {[%clk 00:12:06]} {[%emt 00:01:40]}
Bxf5 {[%clk 00:53:06]} {[%emt 00:00:26]} 49. Rf7+ {[%clk 00:12:31]} {[%emt
00:00:05]} Ke8 {[%clk 00:53:29]} {[%emt 00:00:07]} 50. gxf5 {[%clk 00:12:55]}
{[%emt 00:00:07]} c5 {[%clk 00:53:17]} {[%emt 00:00:42]} 51. bxc5 {[%clk
00:12:14]} {[%emt 00:01:10]} Rc4 {[%clk 00:53:18]} {[%emt 00:00:30]} 52. Ke3
{[%clk 00:11:33]} {[%emt 00:01:11]} Rxc5 {[%clk 00:52:33]} {[%emt 00:01:15]} 53.
Kd4 {[%clk 00:11:21]} {[%emt 00:00:41]} Rc4+ {[%clk 00:52:50]} {[%emt
00:00:13]} 54. Ke5 {[%clk 00:11:29]} {[%emt 00:00:21]} b4 {[%clk 00:53:15]}
{[%emt 00:00:06]} 55. axb4 {[%clk 00:11:40]} {[%emt 00:00:19]} Rxb4 {[%clk
00:53:36]} {[%emt 00:00:09]} 56. Ra7 {[%clk 00:11:48]} {[%emt 00:00:23]} 1-0

[Event "2. Itzehoer Schach Open"]
[Site "Itzehoe, Germany"]
[Date "2023.05.01"]
[Round "5.33"]
[White "Ackermann, Hans-Christian"]
[Black "Haertel, Leon"]
[Result "1/2-1/2"]
[TimeControl "90 min / 40 Züge + 30 min + 30 Sek pro Zug"]
[WhiteElo "1722"]
[BlackElo "1323"]

1. e4 {[%clk 01:30:46]} {[%emt 00:00:13]} c5 {[%clk 01:30:56]} {[%emt
00:00:05]} 2. f4 {[%clk 01:31:02]} {[%emt 00:00:14]} e6 {[%clk 01:31:19]}
{[%emt 00:00:08]} 3. Nf3 {[%clk 01:31:20]} {[%emt 00:00:11]} d5 {[%clk
01:31:43]} {[%emt 00:00:05]} 4. e5 {[%clk 01:31:31]} {[%emt 00:00:19]} d4
{[%clk 01:31:35]} {[%emt 00:00:38]} 5. Bc4 {[%clk 01:30:52]} {[%emt 00:01:10]}
Nc6 {[%clk 01:31:49]} {[%emt 00:00:16]} 6. a3 {[%clk 01:30:56]} {[%emt
00:00:25]} Nge7 {[%clk 01:31:56]} {[%emt 00:00:22]} 7. O-O {[%clk 01:30:58]}
{[%emt 00:00:28]} Nd5 {[%clk 01:31:07]} {[%emt 00:01:20]} 8. d3 {[%clk
01:31:05]} {[%emt 00:00:22]} Be7 {[%clk 01:31:19]} {[%emt 00:00:19]} 9. Qe2
{[%emt 00:02:48]} O-O {[%clk 01:31:11]} {[%emt 00:00:25]} 10. Ne1 {[%emt
00:07:12]} a6 {[%clk 01:25:51]} {[%emt 00:03:16]} 11. Ba2 {[%clk 01:24:53]}
{[%emt 00:00:28]} Qc7 {[%clk 01:24:33]} {[%emt 00:01:47]} 12. Rf3 {[%clk
01:24:43]} {[%emt 00:00:41]} f5 {[%clk 01:23:13]} {[%emt 00:01:52]} 13. Rh3
{[%clk 01:24:36]} {[%emt 00:00:36]} g6 {[%clk 01:22:20]} {[%emt 00:01:23]} 14.
c4 {[%emt 00:07:16]} Nb6 {[%clk 01:11:24]} {[%emt 00:08:19]} 15. Nf3 {[%emt
00:05:19]} Bd7 {[%clk 01:05:39]} {[%emt 00:05:14]} 16. Qf2 {[%clk 01:12:31]}
{[%emt 00:05:07]} Nc8 {[%clk 01:03:07]} {[%emt 00:03:03]} 17. Qg3 {[%emt
00:04:39]} Rf7 {[%clk 01:01:40]} {[%emt 00:00:43]} 18. Ng5 {[%clk 01:08:00]}
{[%emt 00:02:06]} Bxg5 {[%clk 01:01:18]} {[%emt 00:00:52]} 19. Qxg5 {[%clk
01:08:12]} {[%emt 00:00:17]} N8e7 {[%clk 01:01:30]} {[%emt 00:00:18]} 20. Nd2
{[%clk 01:07:20]} {[%emt 00:01:22]} b5 {[%clk 00:59:26]} {[%emt 00:02:34]} 21.
Nf3 {[%clk 01:06:38]} {[%emt 00:01:12]} bxc4 {[%clk 00:59:18]} {[%emt
00:00:39]} 22. Bxc4 {[%clk 01:06:49]} {[%emt 00:00:18]} Nd5 {[%clk 00:58:49]}
{[%emt 00:00:59]} 23. Qh6 {[%clk 01:06:48]} {[%emt 00:00:30]} Rg7 {[%clk
00:58:15]} {[%emt 00:01:05]} 24. Ng5 {[%clk 01:06:43]} {[%emt 00:00:35]} Bc8
{[%clk 00:57:52]} {[%emt 00:00:40]} 25. Rf3 {[%clk 01:05:20]} {[%emt 00:02:06]}
Qe7 {[%clk 00:56:42]} {[%emt 00:01:40]} 26. h4 {[%emt 00:02:40]} Nd8 {[%clk
00:53:09]} {[%emt 00:02:27]} 27. h5 {[%clk 01:04:38]} {[%emt 00:00:37]} Nf7
{[%clk 00:53:15]} {[%emt 00:00:25]} 28. Nxf7 {[%clk 01:04:51]} {[%emt
00:00:17]} Qxf7 {[%clk 00:53:37]} {[%emt 00:00:07]} 29. hxg6 {[%clk 01:04:33]}
{[%emt 00:00:46]} Rxg6 {[%clk 00:53:45]} {[%emt 00:00:22]} 30. Qh2 {[%clk
01:04:07]} {[%emt 00:00:56]} Bb7 {[%clk 00:53:53]} {[%emt 00:00:22]} 31. Rg3
{[%emt 00:07:46]} Qg7 {[%clk 00:51:29]} {[%emt 00:00:28]} 32. Rxg6 {[%clk
00:55:29]} {[%emt 00:04:19]} Qxg6 {[%clk 00:51:35]} {[%emt 00:00:25]} 33. Bd2
{[%emt 00:03:19]} a5 {[%clk 00:48:28]} {[%emt 00:03:07]} 34. Rf1 {[%emt
00:00:59]} Nb6 {[%clk 00:47:25]} {[%emt 00:01:14]} 35. Bb3 {[%emt 00:05:52]} a4
{[%clk 00:43:23]} {[%emt 00:00:29]} 36. Bd1 {[%clk 00:51:56]} {[%emt 00:00:14]}
Ra7 {[%clk 00:43:12]} {[%emt 00:00:39]} 37. Bh5 {[%clk 00:47:43]} {[%emt
00:04:45]} Qg7 {[%clk 00:41:59]} {[%emt 00:01:44]} 38. Rf2 {[%clk 00:47:55]}
{[%emt 00:00:18]} Kh8 {[%clk 00:40:55]} {[%emt 00:01:30]} 39. Qh4 {[%emt
00:01:16]} Ra8 {[%clk 00:40:34]} {[%emt 00:00:33]} 40. Ba5 {[%clk 00:39:21]}
{[%emt 00:08:39]} Nd7 {[%clk 00:38:26]} {[%emt 00:02:38]} 41. Bd8 {[%clk
00:39:01]} {[%emt 00:00:50]} Kg8 {[%clk 00:29:26]} {[%emt 00:09:27]} 42. Be8
{[%clk 00:36:20]} {[%emt 00:03:13]} Nf8 {[%clk 00:29:03]} {[%emt 00:00:51]} 43.
Bf6 {[%clk 00:33:48]} {[%emt 00:03:05]} Qg4 {[%clk 00:27:45]} {[%emt 00:01:44]}
44. Qxg4+ {[%clk 00:30:43]} {[%emt 00:03:38]} fxg4 {[%clk 00:27:55]} {[%emt
00:00:21]} 45. Bh5 {[%clk 00:30:31]} {[%emt 00:00:42]} g3 {[%clk 00:28:10]}
{[%emt 00:00:15]} 46. Rc2 {[%clk 00:30:37]} {[%emt 00:00:24]} Rc8 {[%clk
00:27:55]} {[%emt 00:00:45]} 47. Bh4 {[%clk 00:30:51]} {[%emt 00:00:16]} Rc7
{[%clk 00:27:23]} {[%emt 00:01:03]} 48. Bxg3 {[%clk 00:30:53]} {[%emt
00:00:28]} Ng6 {[%clk 00:27:32]} {[%emt 00:00:21]} 49. Bh2 {[%clk 00:30:17]}
{[%emt 00:01:05]} Nh4 {[%clk 00:27:26]} {[%emt 00:00:37]} 50. Bg4 {[%clk
00:29:54]} {[%emt 00:00:53]} Kf7 {[%emt 00:01:39]} 51. Kf2 {[%emt 00:05:21]}
Nxg2 {[%clk 00:25:28]} {[%emt 00:00:11]} 52. Rc4 {[%clk 00:24:24]} {[%emt
00:02:17]} Ne3 {[%clk 00:25:44]} {[%emt 00:00:14]} 53. Bh5+ {[%clk 00:24:45]}
{[%emt 00:00:09]} Ke7 {[%clk 00:25:44]} {[%emt 00:00:30]} 54. Rxa4 {[%clk
00:24:59]} {[%emt 00:00:16]} Bc6 {[%clk 00:25:47]} {[%emt 00:00:27]} 55. Ra5
{[%clk 00:25:01]} {[%emt 00:00:29]} Rb7 {[%clk 00:25:52]} {[%emt 00:00:22]} 56.
Be2 {[%clk 00:19:38]} {[%emt 00:05:55]} Rxb2 {[%clk 00:25:45]} {[%emt
00:00:37]} 57. Rxc5 {[%clk 00:19:50]} {[%emt 00:00:18]} Ng4+ {[%clk 00:23:27]}
{[%emt 00:02:48]} 58. Ke1 {[%clk 00:18:13]} {[%emt 00:02:08]} Rb1+ {[%clk
00:22:38]} {[%emt 00:01:14]} 59. Kd2 {[%clk 00:16:39]} {[%emt 00:02:09]} Rb2+
{[%clk 00:22:53]} {[%emt 00:00:15]} 60. Ke1 {[%clk 00:15:33]} {[%emt 00:02:23]}
1/2-1/2

[Event "2. Itzehoer Schach Open"]
[Site "Itzehoe, Germany"]
[Date "2023.05.01"]
[Round "5.15"]
[White "Hielscher, Ursula"]
[Black "Tarasenko, Nazar"]
[Result "0-1"]
[TimeControl "90 min / 40 Züge + 30 min + 30 Sek pro Zug"]
[WhiteElo "1702"]
[BlackElo "1970"]

1. d4 {[%clk 01:30:57]} {[%emt 00:00:02]} Nf6 {[%clk 01:30:10]} {[%emt
00:00:51]} 2. c4 {[%clk 01:31:23]} {[%emt 00:00:04]} c5 {[%clk 01:30:32]}
{[%emt 00:00:08]} 3. d5 {[%clk 01:31:40]} {[%emt 00:00:14]} b5 {[%clk
01:30:58]} {[%emt 00:00:04]} 4. e4 {[%clk 01:31:32]} {[%emt 00:00:38]} Nxe4
{[%clk 01:29:18]} {[%emt 00:02:10]} 5. cxb5 {[%clk 01:31:53]} {[%emt 00:00:09]}
a6 {[%clk 01:28:18]} {[%emt 00:01:30]} 6. bxa6 {[%clk 01:29:38]} {[%emt
00:02:45]} d6 {[%clk 01:28:15]} {[%emt 00:00:33]} 7. Bd3 {[%clk 01:29:29]}
{[%emt 00:00:39]} Nf6 {[%clk 01:26:56]} {[%emt 00:01:49]} 8. Nc3 {[%clk
01:27:20]} {[%emt 00:02:40]} g6 {[%clk 01:25:18]} {[%emt 00:02:07]} 9. Nf3
{[%clk 01:27:32]} {[%emt 00:00:18]} Bg7 {[%clk 01:24:40]} {[%emt 00:01:07]} 10.
O-O {[%clk 01:27:17]} {[%emt 00:00:46]} O-O {[%clk 01:25:04]} {[%emt 00:00:05]}
11. Re1 {[%clk 01:26:59]} {[%emt 00:00:49]} Bxa6 {[%clk 01:24:55]} {[%emt
00:00:39]} 12. Bg5 {[%clk 01:24:03]} {[%emt 00:03:25]} Re8 {[%clk 01:24:57]}
{[%emt 00:00:28]} 13. Qa4 {[%clk 01:20:03]} {[%emt 00:04:31]} Qd7 {[%clk
01:22:19]} {[%emt 00:03:06]} 14. Bb5 {[%clk 01:13:44]} {[%emt 00:06:51]} Bxb5
{[%clk 01:22:17]} {[%emt 00:00:31]} 15. Qxb5 {[%clk 01:14:10]} {[%emt
00:00:04]} Qxb5 {[%clk 01:21:18]} {[%emt 00:01:30]} 16. Nxb5 {[%clk 01:14:38]}
{[%emt 00:00:01]} Na6 {[%clk 01:21:34]} {[%emt 00:00:14]} 17. Nc3 {[%clk
01:14:04]} {[%emt 00:01:05]} Nb4 {[%clk 01:21:39]} {[%emt 00:00:25]} 18. Rad1
{[%clk 01:10:24]} {[%emt 00:04:09]} Nxa2 {[%clk 01:21:54]} {[%emt 00:00:16]} 19.
Nb5 {[%clk 01:10:51]} {[%emt 00:00:03]} Rac8 {[%clk 01:17:16]} {[%emt
00:05:07]} 20. Ra1 {[%clk 01:10:21]} {[%emt 00:00:59]} Nb4 {[%clk 01:17:38]}
{[%emt 00:00:09]} 21. Ra7 {[%clk 01:08:39]} {[%emt 00:02:12]} Nbxd5 {[%clk
01:17:58]} {[%emt 00:00:09]} 22. Rb7 {[%clk 01:07:06]} {[%emt 00:02:05]} Rb8
{[%clk 01:17:48]} {[%emt 00:00:39]} 0-1

[ePGN "0.1;DGT LiveChess/2.2.5"]

[Event "2. Itzehoer Schach Open"]
[Site "Itzehoe, Germany"]
[Date "2023.05.01"]
[Round "5.42"]
[White "Lueders Vega, Iago Ernst"]
[Black "Kaehler, Marvin"]
[Result "1-0"]
[TimeControl "90 min für 40 Züge, Rest 30 min + 30 Sek pro Zug"]
[WhiteElo "1333"]
[BlackElo "1015"]

1. e4 {[%clk 01:30:59]} e6 {[%clk 01:20:47]} {[%emt 00:10:13]} 2. d4 {[%clk
01:31:07]} {[%emt 00:00:21]} g6 {[%clk 01:21:06]} {[%emt 00:00:12]} 3. Nf3
{[%clk 01:31:22]} {[%emt 00:00:15]} b6 {[%clk 01:21:29]} {[%emt 00:00:08]} 4.
Nc3 {[%clk 01:31:13]} {[%emt 00:00:37]} Bb7 {[%clk 01:21:42]} {[%emt 00:00:18]}
5. Bd3 {[%clk 01:31:02]} {[%emt 00:00:41]} Bg7 {[%clk 01:22:05]} {[%emt
00:00:07]} 6. O-O {[%clk 01:30:53]} {[%emt 00:00:40]} Ne7 {[%clk 01:22:28]}
{[%emt 00:00:07]} 7. Be3 {[%clk 01:31:05]} {[%emt 00:00:18]} O-O {[%clk
01:22:42]} {[%emt 00:00:15]} 8. Re1 {[%clk 01:31:02]} {[%emt 00:00:32]} d6
{[%clk 01:19:16]} {[%emt 00:03:58]} 9. Qd2 {[%clk 01:31:02]} {[%emt 00:00:30]}
h6 {[%clk 01:19:31]} {[%emt 00:00:14]} 10. Bxh6 {[%clk 01:30:38]} {[%emt
00:00:53]} Bxh6 {[%clk 01:19:40]} {[%emt 00:00:22]} 11. Qxh6 {[%clk 01:31:01]}
{[%emt 00:00:08]} f6 {[%clk 01:19:41]} {[%emt 00:00:30]} 12. e5 {[%clk
01:30:57]} {[%emt 00:00:33]} Nf5 {[%clk 01:19:56]} {[%emt 00:00:15]} 13. Qxg6+
{[%clk 01:30:46]} {[%emt 00:00:42]} Kh8 {[%clk 01:19:39]} {[%emt 00:00:47]} 14.
Bxf5 {[%clk 01:29:49]} {[%emt 00:01:26]} exf5 {[%clk 01:19:53]} {[%emt
00:00:16]} 15. Re3 {[%clk 01:29:31]} {[%emt 00:00:48]} f4 {[%clk 01:20:07]}
{[%emt 00:00:15]} 16. Ng5 {[%clk 01:29:28]} {[%emt 00:00:33]} fxg5 {[%clk
01:20:24]} {[%emt 00:00:13]} 17. Rh3# {[%clk 01:29:51]} {[%emt 00:00:07]} 1-0

[Event "2. Itzehoer Schach Open"]
[Site "Itzehoe, Germany"]
[Date "2023.05.01"]
[Round "5.44"]
[White "Dau-Schmidt, Piet"]
[Black "Moeller, Patrick"]
[Result "1-0"]
[TimeControl "90 min für 40 Züge, Rest 30 min + 30 Sek pro Zug"]
[WhiteElo "1606"]
[BlackElo "1343"]

1. d4 {[%clk 01:30:57]} {[%emt 00:00:02]} d5 {[%clk 01:30:52]} {[%emt
00:00:09]} 2. Nf3 {[%clk 01:31:18]} {[%emt 00:00:09]} Nf6 {[%clk 01:30:30]}
{[%emt 00:00:52]} 3. c4 {[%clk 01:31:39]} {[%emt 00:00:09]} c6 {[%clk
01:30:53]} {[%emt 00:00:08]} 4. g3 {[%clk 01:31:47]} {[%emt 00:00:22]} e6
{[%clk 01:31:13]} {[%emt 00:00:10]} 5. Bg2 {[%clk 01:32:13]} {[%emt 00:00:04]}
Bb4+ {[%clk 01:31:07]} {[%emt 00:00:36]} 6. Bd2 {[%clk 01:32:33]} {[%emt
00:00:09]} Be7 {[%clk 01:31:21]} {[%emt 00:00:17]} 7. O-O {[%emt 00:00:20]} O-O
{[%emt 00:00:38]} 8. b3 {[%clk 01:32:02]} {[%emt 00:00:03]} Nbd7 {[%clk
01:30:08]} {[%emt 00:01:43]} 9. Qc2 {[%clk 01:31:28]} {[%emt 00:01:04]} Ne4
{[%clk 01:21:48]} {[%emt 00:08:50]} 10. Nc3 {[%clk 01:30:16]} {[%emt 00:01:42]}
Nxd2 {[%clk 01:20:59]} {[%emt 00:01:19]} 11. Nxd2 {[%clk 01:30:21]} {[%emt
00:00:25]} Nf6 {[%clk 01:14:57]} {[%emt 00:06:32]} 12. cxd5 {[%clk 01:30:33]}
{[%emt 00:00:18]} exd5 {[%clk 01:13:09]} {[%emt 00:02:18]} 13. Rfd1 {[%clk
01:28:27]} {[%emt 00:02:36]} Be6 {[%clk 01:10:52]} {[%emt 00:02:47]} 14. h3
{[%clk 01:27:02]} {[%emt 00:01:54]} Rc8 {[%clk 01:09:18]} {[%emt 00:02:05]} 15.
Rac1 {[%clk 01:26:25]} {[%emt 00:01:06]} Ba3 {[%clk 01:07:30]} {[%emt
00:02:19]} 16. Rb1 {[%clk 01:26:12]} {[%emt 00:00:44]} c5 {[%clk 01:05:29]}
{[%emt 00:02:31]} 17. Nb5 {[%clk 01:22:01]} {[%emt 00:04:40]} cxd4 {[%clk
01:01:07]} {[%emt 00:04:52]} 18. Qd3 {[%clk 01:22:23]} {[%emt 00:00:08]} Bc5
{[%clk 00:58:53]} {[%emt 00:02:45]} 19. b4 {[%clk 01:19:40]} {[%emt 00:03:13]}
Bb6 {[%clk 00:56:46]} {[%emt 00:02:37]} 20. a4 {[%clk 01:20:02]} {[%emt
00:00:07]} a6 {[%clk 00:57:11]} {[%emt 00:00:05]} 21. Nxd4 {[%clk 01:19:23]}
{[%emt 00:01:09]} Bxd4 {[%clk 00:54:39]} {[%emt 00:03:02]} 22. Qxd4 {[%clk
01:19:46]} {[%emt 00:00:07]} Qe7 {[%clk 00:54:10]} {[%emt 00:00:59]} 23. Rdc1
{[%clk 01:12:59]} {[%emt 00:07:17]} Rc7 {[%clk 00:49:36]} {[%emt 00:05:04]} 24.
Rxc7 {[%clk 01:11:28]} {[%emt 00:02:01]} Qxc7 {[%clk 00:49:55]} {[%emt
00:00:11]} 25. Nb3 {[%clk 01:11:37]} {[%emt 00:00:20]} b6 {[%clk 00:49:16]}
{[%emt 00:01:10]} 26. Rc1 {[%clk 01:09:24]} {[%emt 00:02:42]} Qe7 {[%clk
00:48:14]} {[%emt 00:01:32]} 27. e3 {[%clk 01:07:46]} {[%emt 00:02:09]} Rb8
{[%clk 00:44:59]} {[%emt 00:03:45]} 28. Rc6 {[%clk 01:05:16]} {[%emt 00:02:59]}
Nd7 {[%clk 00:40:47]} {[%emt 00:04:42]} 29. h4 {[%clk 01:02:38]} {[%emt
00:03:08]} h6 {[%clk 00:41:05]} {[%emt 00:00:12]} 30. Bxd5 {[%clk 01:02:24]}
{[%emt 00:00:43]} Bxd5 {[%clk 00:38:31]} {[%emt 00:03:05]} 31. Qxd5 {[%clk
01:02:45]} {[%emt 00:00:08]} Qxb4 {[%clk 00:38:43]} {[%emt 00:00:19]} 32. Rc7
{[%clk 00:58:52]} {[%emt 00:04:23]} Ne5 {[%clk 00:35:23]} {[%emt 00:03:50]} 33.
Kg2 {[%clk 00:56:14]} {[%emt 00:03:09]} Qxa4 {[%clk 00:31:37]} {[%emt
00:04:16]} 34. f4 {[%clk 00:53:54]} {[%emt 00:02:49]} Qa2+ {[%clk 00:16:46]}
{[%emt 00:15:22]} 35. Kh3 {[%clk 00:54:18]} {[%emt 00:00:06]} Qe2 {[%clk
00:17:11]} {[%emt 00:00:05]} 36. fxe5 {[%clk 00:53:13]} {[%emt 00:01:35]} Qf1+
{[%clk 00:17:35]} {[%emt 00:00:06]} 37. Kg4 {[%clk 00:53:30]} {[%emt 00:00:12]}
Qe2+ {[%clk 00:17:20]} {[%emt 00:00:45]} 38. Kf4 {[%clk 00:48:58]} {[%emt
00:05:03]} Qf2+ {[%clk 00:16:16]} {[%emt 00:01:33]} 39. Kg4 {[%clk 00:46:02]}
{[%emt 00:03:25]} Qe2+ {[%clk 00:16:37]} {[%emt 00:00:10]} 40. Qf3 {[%clk
00:46:23]} {[%emt 00:00:09]} h5+ {[%clk 00:16:34]} {[%emt 00:00:33]} 41. Kf4
{[%clk 00:46:14]} {[%emt 00:00:40]} Qd3 {[%clk 00:12:14]} {[%emt 00:04:49]} 42.
Nd4 {[%clk 00:44:56]} {[%emt 00:01:48]} g6 {[%clk 00:12:08]} {[%emt 00:00:36]}
43. Kg5 {[%clk 00:39:36]} {[%emt 00:05:50]} Rf8 {[%clk 00:11:04]} {[%emt
00:01:34]} 44. Kf6 {[%clk 00:34:43]} {[%emt 00:05:22]} a5 {[%clk 00:02:37]}
{[%emt 00:08:58]} 45. Qf4 {[%clk 00:35:06]} {[%emt 00:00:07]} Qa6 {[%clk
00:00:56]} {[%emt 00:02:11]} 46. Qh6 {[%clk 00:31:37]} {[%emt 00:03:58]} Qf1+
{[%clk 00:01:17]} {[%emt 00:00:09]} 47. Qf4 {[%clk 00:31:46]} {[%emt 00:00:21]}
Qa6 {[%clk 00:01:41]} {[%emt 00:00:07]} 48. Kg5 {[%clk 00:30:56]} {[%emt
00:01:19]} f6+ {[%clk 00:20:18]} {[%emt 00:11:53]} 49. exf6 {[%clk 01:01:11]}
{[%emt 00:00:14]} b5 {[%clk 00:19:12]} {[%emt 00:01:37]} 50. f7+ {[%clk
01:01:05]} {[%emt 00:00:37]} Kg7 {[%clk 00:17:36]} {[%emt 00:02:05]} 51. Qe5+
{[%clk 01:00:47]} {[%emt 00:00:48]} Kh7 {[%clk 00:15:43]} {[%emt 00:02:23]} 52.
Ne6 {[%clk 01:01:07]} {[%emt 00:00:10]} 1-0